[Event "Titled Tuesday Blitz February 28 Early 2023"]
[White "Duda, Jan-Krzysztof"]
[Black "Abdrlauf, Elham"]
[WhiteFideId "1170546"]
[BlackFideId "1533533"]
[WhiteElo "2790"]
[BlackElo "2476"]
[Result "1-0"]
[Round "10"]
[TimeControl "180+2"]
[Date "2023.02.28"]
[WhiteClock "0:00:04"]
[BlackClock "0:00:02"]

1. d4 {[%clk 0:03:00]}  Nf6 {[%clk 0:02:59]} 2. Nc3 {[%clk 0:03:00]}  d5 {[%clk 0:02:59]} 3. Bf4 {[%clk 0:03:00]}  c5 {[%clk 0:02:59]} 4. e3 {[%clk 0:02:59]}  Bg4 {[%clk 0:03:00]} 5. f3 {[%clk 0:02:59]}  Bd7 {[%clk 0:02:59]} 6. g4 {[%clk 0:02:55]}  e6 {[%clk 0:02:58]} 7. Qd2 {[%clk 0:02:54]}  Be7 {[%clk 0:02:49]} 8. h4 {[%clk 0:02:53]}  a6 {[%clk 0:02:49]} 9. h5 {[%clk 0:02:49]}  h6 {[%clk 0:02:49]} 10. O-O-O {[%clk 0:02:27]}  cxd4 {[%clk 0:02:46]} 11. exd4 {[%clk 0:02:26]}  Nc6 {[%clk 0:02:47]} 12. Qe3 {[%clk 0:02:21]}  Rc8 {[%clk 0:02:46]} 13. Kb1 {[%clk 0:02:19]}  Na5 {[%clk 0:02:31]} 14. Bd3 {[%clk 0:02:11]}  b5 {[%clk 0:02:30]} 15. Be5 {[%clk 0:01:57]}  b4 {[%clk 0:02:23]} 16. Nce2 {[%clk 0:01:57]}  Nc4 {[%clk 0:02:23]} 17. Bxc4 {[%clk 0:01:57]}  dxc4 {[%clk 0:02:24]} 18. Nf4 {[%clk 0:01:57]}  Bc6 {[%clk 0:02:15]} 19. Ngh3 {[%clk 0:01:50]}  Qa5 {[%clk 0:02:10]} 20. Bxf6 {[%clk 0:01:43]}  Bxf6 {[%clk 0:01:53]} 21. d5 {[%clk 0:01:42]}  b3 {[%clk 0:01:49]} 22. cxb3 {[%clk 0:01:33]}  cxb3 {[%clk 0:01:45]} 23. axb3 {[%clk 0:01:31]}  Bb5 {[%clk 0:01:21]} 24. dxe6 {[%clk 0:01:30]}  O-O {[%clk 0:01:20]} 25. e7 {[%clk 0:01:14]}  Rfe8 {[%clk 0:01:13]} 26. Nd5 {[%clk 0:01:15]}  Rc6 {[%clk 0:00:56]} 27. g5 {[%clk 0:01:05]}  Re6 {[%clk 0:00:20]} 28. Nxf6+ {[%clk 0:00:24]}  gxf6 {[%clk 0:00:20]} 29. Qf4 {[%clk 0:00:24]}  fxg5 {[%clk 0:00:08]} 30. Nxg5 {[%clk 0:00:24]}  hxg5 {[%clk 0:00:09]} 31. Qxg5+ {[%clk 0:00:25]}  Kh8 {[%clk 0:00:10]} 32. Qg4 {[%clk 0:00:08]}  Rg8 {[%clk 0:00:02]} 33. Qd4+ {[%clk 0:00:06]}  f6 {[%clk 0:00:03]} 34. Rhg1 {[%clk 0:00:01]}  Be8 {[%clk 0:00:03]} 35. Rxg8+ {[%clk 0:00:01]}  Kxg8 {[%clk 0:00:04]} 36. Qg4+ {[%clk 0:00:02]}  Kf7 {[%clk 0:00:05]} 37. Rg1 {[%clk 0:00:01]}  Kxe7 {[%clk 0:00:05]} 38. h6 {[%clk 0:00:01]}  Re1+ {[%clk 0:00:04]} 39. Rxe1+ {[%clk 0:00:02]}  Qxe1+ {[%clk 0:00:05]} 40. Ka2 {[%clk 0:00:02]}  Qa5+ {[%clk 0:00:05]} 41. Kb1 {[%clk 0:00:03]}  Qg5 {[%clk 0:00:02]} 42. Qe4+ {[%clk 0:00:03]}  Kd7 {[%clk 0:00:02]} 43. h7 {[%clk 0:00:03]}  Bg6 {[%clk 0:00:02]} 44. h8=Q {[%clk 0:00:04]}  Bxe4+ {[%clk 0:00:02]} 45. fxe4 {[%clk 0:00:05]}  Qe5 {[%clk 0:00:01]} 46. Qh3+ {[%clk 0:00:03]}  Kc6 {[%clk 0:00:01]} 47. Qd3 {[%clk 0:00:04]}  Kb6 {[%clk 0:00:01]} 48. b4 {[%clk 0:00:04]}  Kb7 {[%clk 0:00:01]} 49. Kc2 {[%clk 0:00:04]}  Kb6 {[%clk 0:00:02]} 50. Kb3 {[%clk 0:00:04]}  Qe6+ {[%clk 0:00:01]} 51. Qc4 {[%clk 0:00:04]}  Qxc4+ {[%clk 0:00:02]} 52. Kxc4 {[%clk 0:00:05]}  Kc6 {[%clk 0:00:02]} 53. Kb3 {[%clk 0:00:02]}  Kb6 {[%clk 0:00:02]} 54. Ka4 {[%clk 0:00:02]}  Kb7 {[%clk 0:00:01]} 55. Ka5 {[%clk 0:00:02]}  Ka7 {[%clk 0:00:01]} 56. b5 {[%clk 0:00:03]}  axb5 {[%clk 0:00:02]} 57. Kxb5 {[%clk 0:00:04]} 1-0


[Site "https://www.chess.com"]

[Event "Titled Tuesday Blitz February 28 Early 2023"]
[White "Svane, Rasmus"]
[Black "Caruana, Fabiano"]
[WhiteFideId "4657101"]
[BlackFideId "2020009"]
[WhiteElo "2597"]
[BlackElo "2818"]
[Result "1-0"]
[Round "10"]
[TimeControl "180+2"]
[Date "2023.02.28"]
[WhiteClock "0:00:43"]
[BlackClock "0:00:21"]

1. Nf3 {[%clk 0:03:00]}  Nf6 {[%clk 0:03:00]} 2. g3 {[%clk 0:03:00]}  g6 {[%clk 0:03:00]} 3. Bg2 {[%clk 0:03:00]}  Bg7 {[%clk 0:03:00]} 4. O-O {[%clk 0:03:00]}  O-O {[%clk 0:03:01]} 5. d4 {[%clk 0:03:01]}  b6 {[%clk 0:03:01]} 6. c4 {[%clk 0:03:00]}  Bb7 {[%clk 0:03:01]} 7. Re1 {[%clk 0:03:01]}  e6 {[%clk 0:03:00]} 8. Bf4 {[%clk 0:02:59]}  d6 {[%clk 0:03:00]} 9. Qc2 {[%clk 0:02:58]}  Nbd7 {[%clk 0:02:57]} 10. e4 {[%clk 0:02:58]}  Nh5 {[%clk 0:02:53]} 11. Bg5 {[%clk 0:02:57]}  Qe8 {[%clk 0:02:46]} 12. Nc3 {[%clk 0:02:56]}  h6 {[%clk 0:02:44]} 13. Be3 {[%clk 0:02:56]}  e5 {[%clk 0:02:44]} 14. Rad1 {[%clk 0:02:56]}  Nhf6 {[%clk 0:02:40]} 15. h3 {[%clk 0:02:56]}  c6 {[%clk 0:02:32]} 16. b4 {[%clk 0:02:29]}  Rc8 {[%clk 0:02:27]} 17. Qa4 {[%clk 0:02:21]}  a6 {[%clk 0:02:25]} 18. Qb3 {[%clk 0:02:19]}  Kh7 {[%clk 0:02:20]} 19. dxe5 {[%clk 0:02:09]}  dxe5 {[%clk 0:02:18]} 20. a4 {[%clk 0:02:09]}  Qe6 {[%clk 0:02:14]} 21. Nd2 {[%clk 0:02:05]}  Rfd8 {[%clk 0:02:08]} 22. c5 {[%clk 0:02:02]}  bxc5 {[%clk 0:01:45]} 23. Qxe6 {[%clk 0:02:01]}  fxe6 {[%clk 0:01:46]} 24. bxc5 {[%clk 0:02:01]}  Bf8 {[%clk 0:01:47]} 25. Nb3 {[%clk 0:01:57]}  Rb8 {[%clk 0:01:47]} 26. Bf1 {[%clk 0:01:55]}  Re8 {[%clk 0:01:38]} 27. Rd2 {[%clk 0:01:29]}  Bc8 {[%clk 0:01:35]} 28. Rb1 {[%clk 0:01:23]}  Rb4 {[%clk 0:01:31]} 29. f3 {[%clk 0:01:21]}  g5 {[%clk 0:01:24]} 30. Kg2 {[%clk 0:01:19]}  Kg6 {[%clk 0:01:22]} 31. Rdb2 {[%clk 0:01:04]}  Kg7 {[%clk 0:01:00]} 32. Na5 {[%clk 0:01:04]}  Rxb2+ {[%clk 0:01:00]} 33. Rxb2 {[%clk 0:01:05]}  Bxc5 {[%clk 0:00:56]} 34. Bxc5 {[%clk 0:01:05]}  Nxc5 {[%clk 0:00:57]} 35. Nxc6 {[%clk 0:01:06]}  Nfd7 {[%clk 0:00:48]} 36. Na5 {[%clk 0:01:03]}  Kf6 {[%clk 0:00:45]} 37. Nc4 {[%clk 0:01:02]}  Rd8 {[%clk 0:00:37]} 38. a5 {[%clk 0:01:00]}  Bb7 {[%clk 0:00:34]} 39. Be2 {[%clk 0:00:58]}  Bc6 {[%clk 0:00:33]} 40. Kf2 {[%clk 0:00:56]}  Rb8 {[%clk 0:00:26]} 41. Rxb8 {[%clk 0:00:56]}  Nxb8 {[%clk 0:00:27]} 42. Ke3 {[%clk 0:00:56]}  Nb3 {[%clk 0:00:20]} 43. Bd1 {[%clk 0:00:52]}  Nd4 {[%clk 0:00:19]} 44. Nxe5 {[%clk 0:00:47]}  Kxe5 {[%clk 0:00:19]} 45. f4+ {[%clk 0:00:47]}  gxf4+ {[%clk 0:00:20]} 46. gxf4+ {[%clk 0:00:48]}  Kd6 {[%clk 0:00:20]} 47. Kxd4 {[%clk 0:00:49]}  Be8 {[%clk 0:00:20]} 48. e5+ {[%clk 0:00:47]}  Kc7 {[%clk 0:00:21]} 49. Bf3 {[%clk 0:00:44]}  Bb5 {[%clk 0:00:21]} 50. Nxb5+ {[%clk 0:00:42]}  axb5 {[%clk 0:00:21]} 51. Kc5 {[%clk 0:00:43]} 1-0


[Site "https://www.chess.com"]

[Event "Titled Tuesday Blitz February 28 Early 2023"]
[White "Lazavik, Denis"]
[Black "Kamsky, Gata"]
[WhiteFideId "13515110"]
[BlackFideId "2000024"]
[WhiteElo "2560"]
[BlackElo "2666"]
[Result "1/2-1/2"]
[Round "10"]
[TimeControl "180+2"]
[Date "2023.02.28"]
[WhiteClock "0:00:07"]
[BlackClock "0:00:18"]

1. d4 {[%clk 0:02:59]}  d5 {[%clk 0:02:51]} 2. c4 {[%clk 0:03:00]}  c6 {[%clk 0:02:51]} 3. Nf3 {[%clk 0:03:00]}  Nf6 {[%clk 0:02:50]} 4. Qc2 {[%clk 0:03:01]}  g6 {[%clk 0:02:47]} 5. cxd5 {[%clk 0:03:00]}  cxd5 {[%clk 0:02:46]} 6. Bf4 {[%clk 0:03:00]}  Nc6 {[%clk 0:02:44]} 7. Nc3 {[%clk 0:03:00]}  Bg4 {[%clk 0:02:32]} 8. e3 {[%clk 0:02:26]}  Bxf3 {[%clk 0:02:30]} 9. gxf3 {[%clk 0:02:27]}  e6 {[%clk 0:02:28]} 10. Be2 {[%clk 0:02:21]}  Bd6 {[%clk 0:02:25]} 11. Bg5 {[%clk 0:02:20]}  Rc8 {[%clk 0:02:20]} 12. Qb3 {[%clk 0:02:18]}  Rb8 {[%clk 0:01:54]} 13. f4 {[%clk 0:02:16]}  Be7 {[%clk 0:01:50]} 14. h4 {[%clk 0:02:09]}  h5 {[%clk 0:01:50]} 15. Bd3 {[%clk 0:01:58]}  Nd7 {[%clk 0:01:48]} 16. Rg1 {[%clk 0:01:54]}  Qb6 {[%clk 0:01:42]} 17. Qxb6 {[%clk 0:01:37]}  Nxb6 {[%clk 0:01:37]} 18. Bxe7 {[%clk 0:01:37]}  Kxe7 {[%clk 0:01:33]} 19. Kd2 {[%clk 0:01:36]}  Rbc8 {[%clk 0:01:24]} 20. Rgc1 {[%clk 0:01:34]}  Kf6 {[%clk 0:01:17]} 21. b3 {[%clk 0:01:17]}  Rhd8 {[%clk 0:01:15]} 22. Ne2 {[%clk 0:01:15]}  Nb4 {[%clk 0:01:13]} 23. Nc3 {[%clk 0:01:06]}  Nxd3 {[%clk 0:01:12]} 24. Kxd3 {[%clk 0:01:07]}  a6 {[%clk 0:01:08]} 25. a4 {[%clk 0:01:06]}  a5 {[%clk 0:01:03]} 26. Nb5 {[%clk 0:00:46]}  Ke7 {[%clk 0:01:00]} 27. f3 {[%clk 0:00:40]}  Rc6 {[%clk 0:00:59]} 28. Rc3 {[%clk 0:00:34]}  Ra8 {[%clk 0:00:55]} 29. Rac1 {[%clk 0:00:34]}  Kd7 {[%clk 0:00:55]} 30. e4 {[%clk 0:00:33]}  Nc8 {[%clk 0:00:51]} 31. f5 {[%clk 0:00:15]}  gxf5 {[%clk 0:00:48]} 32. exd5 {[%clk 0:00:14]}  exd5 {[%clk 0:00:47]} 33. Rg1 {[%clk 0:00:14]}  Nd6 {[%clk 0:00:35]} 34. Nxd6 {[%clk 0:00:12]}  Rxc3+ {[%clk 0:00:32]} 35. Kxc3 {[%clk 0:00:12]}  Kxd6 {[%clk 0:00:32]} 36. Rg5 {[%clk 0:00:12]}  Rh8 {[%clk 0:00:30]} 37. Rxf5 {[%clk 0:00:12]}  Ke6 {[%clk 0:00:30]} 38. Re5+ {[%clk 0:00:13]}  Kd6 {[%clk 0:00:31]} 39. Rg5 {[%clk 0:00:12]}  Ke6 {[%clk 0:00:26]} 40. Kd3 {[%clk 0:00:12]}  b6 {[%clk 0:00:25]} 41. Re5+ {[%clk 0:00:08]}  Kd6 {[%clk 0:00:25]} 42. Rf5 {[%clk 0:00:07]}  Ke6 {[%clk 0:00:25]} 43. Re5+ {[%clk 0:00:07]}  Kd6 {[%clk 0:00:26]} 44. Rg5 {[%clk 0:00:08]}  Ke6 {[%clk 0:00:25]} 45. Ke3 {[%clk 0:00:08]}  Rc8 {[%clk 0:00:19]} 46. Re5+ {[%clk 0:00:07]}  Kd6 {[%clk 0:00:19]} 47. Kd3 {[%clk 0:00:07]}  Rh8 {[%clk 0:00:18]} 1/2-1/2


[Site "https://www.chess.com"]

[Event "Titled Tuesday Blitz February 28 Early 2023"]
[White "Adhiban, B."]
[Black "Livaic, Leon"]
[WhiteFideId "5018471"]
[BlackFideId "14531534"]
[WhiteElo "2587"]
[BlackElo "2509"]
[Result "1-0"]
[Round "10"]
[TimeControl "180+2"]
[Date "2023.02.28"]
[WhiteClock "0:02:01"]
[BlackClock "0:01:37"]

1. b3 {[%clk 0:02:59]}  d5 {[%clk 0:02:59]} 2. Bb2 {[%clk 0:02:59]}  Bg4 {[%clk 0:03:00]} 3. Nf3 {[%clk 0:02:57]}  Bxf3 {[%clk 0:03:00]} 4. exf3 {[%clk 0:02:56]}  Nf6 {[%clk 0:03:01]} 5. g3 {[%clk 0:02:54]}  g6 {[%clk 0:03:01]} 6. Qe2 {[%clk 0:02:54]}  Nbd7 {[%clk 0:02:40]} 7. Bxf6 {[%clk 0:02:53]}  Nxf6 {[%clk 0:02:40]} 8. Qb5+ {[%clk 0:02:53]}  c6 {[%clk 0:02:21]} 9. Qxb7 {[%clk 0:02:52]}  Rc8 {[%clk 0:02:21]} 10. Nc3 {[%clk 0:02:38]}  Bg7 {[%clk 0:02:19]} 11. Bh3 {[%clk 0:02:37]}  Rc7 {[%clk 0:02:17]} 12. Qa6 {[%clk 0:02:38]}  O-O {[%clk 0:02:10]} 13. O-O {[%clk 0:02:38]}  e5 {[%clk 0:02:08]} 14. Rfe1 {[%clk 0:02:37]}  Re8 {[%clk 0:02:08]} 15. Rad1 {[%clk 0:02:33]}  Nd7 {[%clk 0:02:05]} 16. Bxd7 {[%clk 0:02:29]}  Qxd7 {[%clk 0:02:06]} 17. Kg2 {[%clk 0:02:29]}  f5 {[%clk 0:02:05]} 18. b4 {[%clk 0:02:24]}  Rb8 {[%clk 0:01:59]} 19. a3 {[%clk 0:02:23]}  c5 {[%clk 0:01:50]} 20. bxc5 {[%clk 0:02:22]}  Rxc5 {[%clk 0:01:49]} 21. Rb1 {[%clk 0:02:22]}  Rcc8 {[%clk 0:01:41]} 22. Rxb8 {[%clk 0:02:18]}  Rxb8 {[%clk 0:01:42]} 23. Rb1 {[%clk 0:02:11]}  Rxb1 {[%clk 0:01:42]} 24. Nxb1 {[%clk 0:02:12]}  d4 {[%clk 0:01:41]} 25. d3 {[%clk 0:02:06]}  h5 {[%clk 0:01:39]} 26. Qxg6 {[%clk 0:02:02]}  Qc6 {[%clk 0:01:37]} 27. Qxc6 {[%clk 0:02:01]} 1-0


[Site "https://www.chess.com"]

[Event "Titled Tuesday Blitz February 28 Early 2023"]
[White "Sarana, Alexey"]
[Black "Kowalczyk, Pawel"]
[WhiteFideId "24133795"]
[BlackFideId "1130641"]
[WhiteElo "2717"]
[BlackElo "2324"]
[Result "0-1"]
[Round "10"]
[TimeControl "180+2"]
[Date "2023.02.28"]
[WhiteClock "0:00:01"]
[BlackClock "0:00:25"]

1. c4 {[%clk 0:03:00]}  e5 {[%clk 0:02:58]} 2. Nf3 {[%clk 0:02:59]}  Nc6 {[%clk 0:02:57]} 3. Nc3 {[%clk 0:02:59]}  Nf6 {[%clk 0:02:57]} 4. g3 {[%clk 0:02:57]}  Bb4 {[%clk 0:02:52]} 5. Nd5 {[%clk 0:02:56]}  Bc5 {[%clk 0:02:50]} 6. Bg2 {[%clk 0:02:56]}  d6 {[%clk 0:02:50]} 7. O-O {[%clk 0:02:56]}  O-O {[%clk 0:02:49]} 8. e3 {[%clk 0:02:56]}  Bg4 {[%clk 0:02:41]} 9. h3 {[%clk 0:02:55]}  Bh5 {[%clk 0:02:41]} 10. g4 {[%clk 0:02:17]}  Bg6 {[%clk 0:02:40]} 11. d3 {[%clk 0:02:10]}  Nxd5 {[%clk 0:02:34]} 12. cxd5 {[%clk 0:02:10]}  Nb4 {[%clk 0:02:34]} 13. e4 {[%clk 0:02:10]}  c6 {[%clk 0:02:29]} 14. a3 {[%clk 0:02:10]}  Na6 {[%clk 0:02:27]} 15. b4 {[%clk 0:02:06]}  Bb6 {[%clk 0:02:26]} 16. dxc6 {[%clk 0:01:54]}  bxc6 {[%clk 0:02:27]} 17. Qa4 {[%clk 0:01:53]}  Qc8 {[%clk 0:02:22]} 18. Bd2 {[%clk 0:01:43]}  Qb7 {[%clk 0:02:21]} 19. Nh4 {[%clk 0:01:39]}  Rfd8 {[%clk 0:02:13]} 20. Kh1 {[%clk 0:01:32]}  Rac8 {[%clk 0:02:11]} 21. f4 {[%clk 0:01:31]}  exf4 {[%clk 0:02:07]} 22. Bxf4 {[%clk 0:01:31]}  Nc7 {[%clk 0:02:02]} 23. Nf5 {[%clk 0:01:24]}  Bxf5 {[%clk 0:01:55]} 24. gxf5 {[%clk 0:01:21]}  Bd4 {[%clk 0:01:50]} 25. Ra2 {[%clk 0:01:19]}  Nb5 {[%clk 0:01:45]} 26. Qb3 {[%clk 0:01:18]}  Be5 {[%clk 0:01:40]} 27. Be3 {[%clk 0:01:17]}  Nd4 {[%clk 0:01:35]} 28. Qc4 {[%clk 0:01:08]}  c5 {[%clk 0:01:33]} 29. bxc5 {[%clk 0:01:00]}  dxc5 {[%clk 0:01:27]} 30. Rg1 {[%clk 0:00:56]}  Qe7 {[%clk 0:01:21]} 31. Bf1 {[%clk 0:00:44]}  Bf6 {[%clk 0:01:19]} 32. Rg4 {[%clk 0:00:31]}  Nxf5 {[%clk 0:01:17]} 33. Bf2 {[%clk 0:00:28]}  Nd4 {[%clk 0:01:08]} 34. Be3 {[%clk 0:00:26]}  Qe6 {[%clk 0:01:05]} 35. Qxe6 {[%clk 0:00:21]}  fxe6 {[%clk 0:01:05]} 36. Bf4 {[%clk 0:00:21]}  g6 {[%clk 0:01:00]} 37. h4 {[%clk 0:00:20]}  Kf7 {[%clk 0:00:59]} 38. Rh2 {[%clk 0:00:20]}  h5 {[%clk 0:00:52]} 39. Rgg2 {[%clk 0:00:20]}  c4 {[%clk 0:00:48]} 40. dxc4 {[%clk 0:00:20]}  Nf3 {[%clk 0:00:45]} 41. Rh3 {[%clk 0:00:19]}  Nxh4 {[%clk 0:00:44]} 42. Rf2 {[%clk 0:00:19]}  Kg7 {[%clk 0:00:42]} 43. Be3 {[%clk 0:00:16]}  Rd1 {[%clk 0:00:38]} 44. Kg1 {[%clk 0:00:10]}  Be7 {[%clk 0:00:35]} 45. Bxa7 {[%clk 0:00:06]}  g5 {[%clk 0:00:33]} 46. Be3 {[%clk 0:00:04]}  g4 {[%clk 0:00:32]} 47. Rg3 {[%clk 0:00:02]}  Bd6 {[%clk 0:00:31]} 48. Bf4 {[%clk 0:00:02]}  Bc5 {[%clk 0:00:31]} 49. Be3 {[%clk 0:00:02]}  Bxe3 {[%clk 0:00:30]} 50. Rxe3 {[%clk 0:00:03]}  Rxc4 {[%clk 0:00:28]} 51. Kh2 {[%clk 0:00:03]}  Rcc1 {[%clk 0:00:28]} 52. Be2 {[%clk 0:00:03]}  Rh1+ {[%clk 0:00:28]} 53. Kg3 {[%clk 0:00:04]}  Rcg1+ {[%clk 0:00:27]} 54. Kf4 {[%clk 0:00:05]}  Ng2+ {[%clk 0:00:24]} 55. Rxg2 {[%clk 0:00:05]}  Rxg2 {[%clk 0:00:25]} 56. Bc4 {[%clk 0:00:05]}  Kf6 {[%clk 0:00:24]} 57. e5+ {[%clk 0:00:05]}  Ke7 {[%clk 0:00:24]} 58. Rb3 {[%clk 0:00:05]}  Rf2+ {[%clk 0:00:24]} 59. Kg5 {[%clk 0:00:02]}  Rf5+ {[%clk 0:00:25]} 60. Kg6 {[%clk 0:00:02]}  Rxe5 {[%clk 0:00:25]} 61. Rb7+ {[%clk 0:00:02]}  Kd6 {[%clk 0:00:25]} 62. Rb3 {[%clk 0:00:01]}  h4 {[%clk 0:00:25]} 0-1


[Site "https://www.chess.com"]

[Event "Titled Tuesday Blitz February 28 Early 2023"]
[White "Paravyan, David"]
[Black "Yeletsky, Ivan"]
[WhiteFideId "4194985"]
[BlackFideId "24180327"]
[WhiteElo "2577"]
[BlackElo "2414"]
[Result "1-0"]
[Round "10"]
[TimeControl "180+2"]
[Date "2023.02.28"]
[WhiteClock "0:00:07"]
[BlackClock "0:00:01"]

1. e4 {[%clk 0:03:00]}  e6 {[%clk 0:02:49]} 2. d4 {[%clk 0:03:00]}  d5 {[%clk 0:02:49]} 3. Nd2 {[%clk 0:03:01]}  c5 {[%clk 0:02:49]} 4. exd5 {[%clk 0:02:59]}  Qxd5 {[%clk 0:02:49]} 5. Ngf3 {[%clk 0:03:00]}  cxd4 {[%clk 0:02:49]} 6. Bc4 {[%clk 0:03:00]}  Qd6 {[%clk 0:02:49]} 7. O-O {[%clk 0:03:01]}  Nf6 {[%clk 0:02:49]} 8. Nb3 {[%clk 0:03:02]}  Nc6 {[%clk 0:02:49]} 9. Nbxd4 {[%clk 0:03:02]}  Nxd4 {[%clk 0:02:49]} 10. Nxd4 {[%clk 0:03:03]}  Be7 {[%clk 0:02:49]} 11. Re1 {[%clk 0:03:02]}  O-O {[%clk 0:02:49]} 12. c3 {[%clk 0:03:03]}  Bd7 {[%clk 0:02:39]} 13. Bb3 {[%clk 0:03:01]}  a5 {[%clk 0:02:38]} 14. a4 {[%clk 0:02:48]}  Qb6 {[%clk 0:02:33]} 15. Be3 {[%clk 0:02:29]}  Bc5 {[%clk 0:02:33]} 16. Bc2 {[%clk 0:01:53]}  Bc6 {[%clk 0:02:29]} 17. Nxc6 {[%clk 0:01:50]}  bxc6 {[%clk 0:02:29]} 18. Bxc5 {[%clk 0:01:43]}  Qxc5 {[%clk 0:02:30]} 19. Qe2 {[%clk 0:01:36]}  Rab8 {[%clk 0:02:26]} 20. Rab1 {[%clk 0:01:32]}  g6 {[%clk 0:02:24]} 21. g3 {[%clk 0:01:28]}  Kg7 {[%clk 0:02:23]} 22. Qe5 {[%clk 0:01:26]}  Qd5 {[%clk 0:02:16]} 23. b4 {[%clk 0:01:18]}  Rfd8 {[%clk 0:01:57]} 24. Qe2 {[%clk 0:00:52]}  Qa2 {[%clk 0:01:29]} 25. bxa5 {[%clk 0:00:47]}  Rxb1 {[%clk 0:01:21]} 26. Rxb1 {[%clk 0:00:48]}  Rd5 {[%clk 0:00:54]} 27. a6 {[%clk 0:00:41]}  Ra5 {[%clk 0:00:54]} 28. Bd3 {[%clk 0:00:31]}  Qxa4 {[%clk 0:00:46]} 29. Rb7 {[%clk 0:00:28]}  h5 {[%clk 0:00:03]} 30. Qxe6 {[%clk 0:00:19]}  Qd1+ {[%clk 0:00:03]} 31. Kg2 {[%clk 0:00:19]}  Qxd3 {[%clk 0:00:03]} 32. Rxf7+ {[%clk 0:00:19]}  Kh6 {[%clk 0:00:04]} 33. Qxf6 {[%clk 0:00:10]}  Qe4+ {[%clk 0:00:03]} 34. Qf3 {[%clk 0:00:10]}  Qxf3+ {[%clk 0:00:04]} 35. Kxf3 {[%clk 0:00:10]}  Rxa6 {[%clk 0:00:05]} 36. Rf6 {[%clk 0:00:08]}  Kg5 {[%clk 0:00:05]} 37. Rf4 {[%clk 0:00:03]}  Ra5 {[%clk 0:00:02]} 38. h4+ {[%clk 0:00:04]}  Kh6 {[%clk 0:00:02]} 39. Rc4 {[%clk 0:00:05]}  c5 {[%clk 0:00:03]} 40. Ke4 {[%clk 0:00:05]}  g5 {[%clk 0:00:02]} 41. Kd5 {[%clk 0:00:04]}  gxh4 {[%clk 0:00:01]} 42. Rxh4 {[%clk 0:00:04]}  Ra2 {[%clk 0:00:02]} 43. Rf4 {[%clk 0:00:04]}  Rc2 {[%clk 0:00:01]} 44. c4 {[%clk 0:00:04]}  Kg5 {[%clk 0:00:01]} 45. Kxc5 {[%clk 0:00:05]}  h4 {[%clk 0:00:02]} 46. Rxh4 {[%clk 0:00:05]}  Rxf2 {[%clk 0:00:02]} 47. Rd4 {[%clk 0:00:06]}  Rf3 {[%clk 0:00:01]} 48. g4 {[%clk 0:00:07]}  Rc3 {[%clk 0:00:01]} 49. Kd5 {[%clk 0:00:07]} 1-0


[Site "https://www.chess.com"]

[Event "Titled Tuesday Blitz February 28 Early 2023"]
[White "Erigaisi Arjun"]
[Black "Zhigalko, Sergei"]
[WhiteFideId "35009192"]
[BlackFideId "13502956"]
[WhiteElo "2737"]
[BlackElo "2626"]
[Result "1-0"]
[Round "10"]
[TimeControl "180+2"]
[Date "2023.02.28"]
[WhiteClock "0:00:43"]
[BlackClock "0:00:01"]

1. c4 {[%clk 0:02:57]}  e5 {[%clk 0:03:00]} 2. d3 {[%clk 0:02:50]}  Nf6 {[%clk 0:03:00]} 3. Nf3 {[%clk 0:02:51]}  Nc6 {[%clk 0:03:00]} 4. a3 {[%clk 0:02:50]}  a5 {[%clk 0:02:55]} 5. e3 {[%clk 0:02:46]}  d5 {[%clk 0:02:47]} 6. cxd5 {[%clk 0:02:47]}  Nxd5 {[%clk 0:02:48]} 7. Be2 {[%clk 0:02:47]}  Be7 {[%clk 0:02:46]} 8. O-O {[%clk 0:02:47]}  O-O {[%clk 0:02:47]} 9. b3 {[%clk 0:02:45]}  Be6 {[%clk 0:02:41]} 10. Bb2 {[%clk 0:02:45]}  f6 {[%clk 0:02:42]} 11. Nbd2 {[%clk 0:02:45]}  Qe8 {[%clk 0:02:32]} 12. Rc1 {[%clk 0:02:44]}  Qg6 {[%clk 0:02:31]} 13. Ne4 {[%clk 0:02:42]}  Rad8 {[%clk 0:02:27]} 14. Qc2 {[%clk 0:02:39]}  Kh8 {[%clk 0:02:18]} 15. Rfd1 {[%clk 0:02:23]}  Rfe8 {[%clk 0:02:11]} 16. Kh1 {[%clk 0:02:21]}  Bf8 {[%clk 0:02:08]} 17. Rg1 {[%clk 0:02:18]}  f5 {[%clk 0:01:56]} 18. Nc5 {[%clk 0:02:01]}  Bc8 {[%clk 0:01:56]} 19. Nd2 {[%clk 0:01:52]}  Qh6 {[%clk 0:01:35]} 20. Bf3 {[%clk 0:01:49]}  Rd6 {[%clk 0:01:27]} 21. g3 {[%clk 0:01:43]}  f4 {[%clk 0:01:00]} 22. gxf4 {[%clk 0:01:18]}  exf4 {[%clk 0:00:58]} 23. e4 {[%clk 0:01:19]}  Nb6 {[%clk 0:00:22]} 24. Bg4 {[%clk 0:01:17]}  Ne5 {[%clk 0:00:05]} 25. Bxe5 {[%clk 0:01:14]}  Rxe5 {[%clk 0:00:06]} 26. Nf3 {[%clk 0:01:05]}  Bxg4 {[%clk 0:00:02]} 27. Rxg4 {[%clk 0:01:06]}  Rh5 {[%clk 0:00:02]} 28. Nxb7 {[%clk 0:01:04]}  Rg6 {[%clk 0:00:01]} 29. Nd8 {[%clk 0:00:43]}  Bxa3 {[%clk 0:00:01]} 30. Nf7+ {[%clk 0:00:43]} 1-0


[Site "https://www.chess.com"]